bitfinex/quotes_ETHUSD_20260103
["timestamp","ask_amount","ask_price","bid_price","bid_amount"]
[1767422185783,4.6462402,3111.4,3111.0,2.35344575]
[1767422185985,4.6472402,3111.4,3111.0,2.35344575]
[1767422195085,0.46480403,3111.3,3111.0,0.001]
[1767422195275,5.64241253,3111.3,3110.6,0.00080008]
[1767422195481,2.47152463,3111.2,3110.6,0.00080008]
[1767422195962,3.21429719,3111.1,3110.6,0.00080008]
[1767422196164,4.15077923,3111.1,3110.6,0.00080008]
[1767422196486,0.93648204,3111.1,3110.7,2.33082923]
[1767422196789,3.21421621,3111.2,3110.7,2.33082923]
[1767422197084,3.67892344,3111.3,3110.7,2.33082923]
[1767422203099,3.67992344,3111.3,3110.7,2.33082923]
[1767422203471,6.89404285,3111.3,3110.7,2.33082923]
[1767422207479,9.36556748,3111.3,3110.7,2.33082923]
[1767422207677,0.93665675,3111.2,3110.7,2.33082923]
[1767422209787,3.21429719,3111.1,3110.7,2.33082923]
[1767422217213,6.42859438,3111.1,3110.7,2.33082923]
[1767422217784,6.42859438,3111.1,3110.7,2.32956688]
[1767422218199,3.21429719,3111.1,3110.7,2.32956688]
[1767422218705,7.08598841,3111.1,3110.7,2.32835291]
[1767422219606,3.87169122,3111.1,3110.7,2.32835291]
[1767422220711,3.87169122,3111.1,3110.6,0.00280008]
[1767422221201,7.08598841,3111.1,3110.6,0.00280008]
[1767422221403,7.08598841,3111.1,3110.6,2.43835693]
[1767422221722,3.2073688,3111.0,3110.6,0.00280008]
[1767422221924,2.40510428,3110.9,3110.6,0.00280008]
[1767422222413,2.40510428,3110.9,3110.4,0.002]
[1767422224526,5.61971145,3110.8,3110.4,0.002]
[1767422225515,0.00080008,3110.6,3110.1,0.00155416]
[1767422225697,2.40510428,3110.5,3110.1,0.00155416]
[1767422227723,5.62002149,3110.5,3110.4,0.002]
[1767422227918,5.62002149,3110.5,3110.1,0.00155416]
[1767422229997,2.40510428,3110.4,3110.1,0.00155416]
[1767422230197,0.88349387,3110.3,3110.1,0.00155416]
[1767422231323,4.09866021,3110.3,3110.1,0.00155416]
[1767422231699,0.88349387,3110.3,3110.1,0.00155416]
[1767422231898,3.21505063,3110.4,3110.1,0.00155416]
[1767422233128,6.43013727,3110.4,3110.1,0.00155416]
[1767422233330,6.42983442,3110.5,3110.1,0.00155416]
[1767422237613,2.40510428,3110.4,3109.8,0.00280008]
[1767422237821,2.40510428,3110.2,3109.8,0.00280008]
[1767422238210,2.40510428,3110.2,3109.6,0.002]
[1767422238410,2.40590436,3110.2,3109.6,0.002]
[1767422238607,2.40590436,3110.2,3109.4,0.002]
[1767422238810,2.40590436,3109.9,3109.4,0.002]
[1767422239013,2.6464948,3109.9,3109.4,0.002]
[1767422239507,5.62074515,3109.8,3109.4,0.002]
[1767422249539,8.83638602,3109.8,3109.4,0.002]
[1767422250912,2.49571354,3109.7,3109.3,0.002]
[1767422251424,2.49571354,3109.5,3109.3,0.001]
[1767422251941,3.06686966,3109.5,3109.0,0.00280008]
[1767422253445,5.71256816,3109.4,3108.8,0.002]
[1767422253853,8.9286227,3109.4,3108.8,0.002]
[1767422254341,5.71256816,3109.4,3108.8,0.002]
[1767422254536,5.71256816,3109.4,3108.8,0.001]
[1767422254537,2.49571354,3109.3,3108.8,0.001]
[1767422254744,0.57125682,3109.2,3108.8,0.001]
[1767422254934,3.06697036,3109.2,3108.8,0.001]
[1767422255522,3.21636486,3109.1,3108.8,0.001]
[1767422255721,6.28325449,3109.2,3108.8,0.001]
[1767422255922,5.71199767,3109.2,3108.8,0.001]
[1767422262718,8.9282818,3109.2,3108.6,0.00080008]
[1767422262923,2.49571354,3109.1,3108.6,0.00080008]
[1767422264153,5.71214541,3109.1,3108.6,0.00080008]
[1767422264354,5.71214541,3109.1,3108.8,0.002]
[1767422267840,2.49571354,3109.1,3108.8,0.002]
[1767422268160,5.71207928,3109.1,3108.8,0.002]
[1767422269233,2.49571354,3109.0,3108.6,0.00080008]
[1767422271061,2.49571354,3109.0,3108.8,0.002]
[1767422271261,5.71226516,3109.0,3108.6,0.00080008]
[1767422272979,8.92881678,3109.0,3108.6,0.00080008]
[1767422273267,9.82179846,3109.0,3108.6,0.00080008]
[1767422274063,2.49571354,3108.9,3108.2,2.4458528]
[1767422275736,3.21667524,3108.8,3108.2,2.4458528]
[1767422278455,3.21667524,3108.8,3108.2,5.66314663]
[1767422279860,4.11029217,3109.0,3108.3,2.43670484]
[1767422280028,4.11029217,3109.0,3108.3,2.46887676]
[1767422280955,4.11029217,3109.0,3108.3,2.43670484]
[1767422282631,4.11029217,3109.0,3108.3,5.65388814]
[1767422284142,4.11029217,3109.0,3108.4,2.43670484]
[1767422284838,4.11129217,3109.0,3108.4,2.43670484]
[1767422285370,3.21831049,3109.0,3108.4,2.43670484]
[1767422287765,0.00180008,3109.0,3108.5,2.43670484]
[1767422292348,0.00180008,3109.0,3108.6,2.43670484]
[1767422292542,0.00180008,3109.0,3108.3,0.002]
[1767422292888,2.36815332,3109.0,3108.3,0.002]
[1767422293570,2.36815332,3109.0,3108.5,0.002]
[1767422298272,5.58462374,3109.0,3108.5,0.002]
[1767422300295,2.92481561,3108.9,3108.5,0.002]
[1767422300458,2.36635324,3108.9,3108.5,0.002]
[1767422300655,0.00180008,3109.0,3108.5,2.43870484]
[1767422302592,0.00180008,3109.0,3108.5,0.002]
[1767422302968,2.36815332,3109.0,3108.5,0.002]
[1767422304884,5.58463754,3109.0,3108.5,0.002]
[1767422305058,0.65500485,3108.9,3108.5,0.002]
[1767422308796,3.87158885,3108.9,3108.5,0.002]
[1767422312596,0.65500485,3108.9,3108.5,0.002]
[1767422312800,5.58466821,3109.0,3108.5,0.002]
[1767422317798,3.21831497,3109.0,3108.5,0.002]
[1767422321682,2.48811137,3108.9,3108.5,0.002]
[1767422323588,2.48811137,3108.7,3108.2,0.00080008]
[1767422323791,0.89214619,3108.6,3108.2,0.00080008]
[1767422325816,3.21698568,3108.5,3108.2,0.00080008]
[1767422329606,8.92208273,3108.5,3107.7,2.37576469]
[1767422329783,2.48811137,3108.4,3107.7,2.37576469]
[1767422329983,0.89220827,3108.3,3107.7,2.37576469]
[1767422330292,2.48811137,3108.4,3107.7,2.37576469]
[1767422331391,3.21719267,3108.3,3107.7,2.37576469]
[1767422333614,5.70520054,3108.4,3107.7,2.37576469]
[1767422334919,8.9222991,3108.4,3107.7,2.37576469]
[1767422335498,4.18261006,3108.5,3107.7,2.37576469]
[1767422335898,4.18261006,3108.5,3107.8,2.37496461]
[1767422336292,0.96558494,3108.5,3107.8,2.37496461]
[1767422336492,0.00080008,3108.6,3108.0,2.37496461]
[1767422338021,0.00080008,3108.6,3108.1,2.37496461]
[1767422339029,0.00080008,3108.6,3108.2,2.37496461]
[1767422342119,0.00180008,3108.6,3108.2,2.37496461]
[1767422342301,0.00180008,3108.6,3108.0,5.60111485]
[1767422342499,2.40836954,3108.6,3107.8,2.38365081]
[1767422342701,0.56251732,3108.5,3107.8,2.38365081]
[1767422343006,6.18610423,3108.5,3107.8,5.60132707]
[1767422345148,2.96908678,3108.5,3107.8,5.60132707]
[1767422345350,2.40656946,3108.5,3107.9,2.38365081]
[1767422347140,0.00180008,3108.6,3108.0,2.38365081]
[1767422350343,0.00180008,3108.6,3108.0,2.38565081]
[1767422353808,2.40836954,3108.6,3108.0,2.38565081]
[1767422355244,2.40836954,3108.6,3108.0,0.002]
[1767422355470,0.8841927,3108.5,3108.0,0.002]
[1767422357240,4.10118425,3108.5,3108.0,0.002]
[1767422357614,4.10118425,3108.5,3107.7,0.00080008]
[1767422357615,2.40656946,3108.4,3107.7,0.00080008]
[1767422358419,2.40736954,3108.1,3107.6,0.002]
[1767422358651,0.24073695,3108.0,3107.6,0.002]
[1767422358825,3.45829227,3108.0,3107.6,0.002]
[1767422359150,0.24073695,3108.0,3107.6,0.002]
[1767422359369,0.00080008,3108.1,3107.6,0.002]
[1767422359858,3.21820482,3108.1,3107.6,2.38565081]
[1767422360067,0.00080008,3108.1,3107.6,2.38565081]
[1767422362772,0.00080008,3108.1,3107.6,0.002]
[1767422362773,2.40736954,3108.1,3107.6,0.002]
[1767422363056,2.64730641,3108.0,3107.6,0.002]
[1767422363224,2.64730641,3108.0,3107.3,0.0008]
[1767422363502,3.21771027,3107.8,3107.3,0.0008]
[1767422363713,6.43542054,3107.8,3107.3,0.0008]
[1767422363863,8.84199,3107.8,3107.3,0.0008]
[1767422364204,3.29084847,3107.7,3107.3,0.0008]
[1767422364365,2.40656946,3107.6,3107.0,2.38565081]
[1767422365467,2.40656946,3107.6,3107.0,0.002]
[1767422365797,8.84261128,3107.5,3107.0,0.002]
[1767422365996,6.5973594,3107.5,3107.0,0.002]
[1767422366196,9.81538031,3107.5,3107.0,0.002]
[1767422366887,6.5973594,3107.5,3107.0,0.002]
[1767422367088,9.81538031,3107.5,3107.0,0.002]
[1767422367303,2.40656946,3107.4,3106.7,0.002]
[1767422367612,2.40656946,3107.1,3106.7,0.002]
[1767422367769,2.40656946,3107.1,3106.5,0.844]
[1767422367969,2.40656946,3107.1,3106.4,2.38565081]
[1767422368379,2.40656946,3107.1,3106.4,0.002]
[1767422368584,2.40656946,3106.9,3106.4,0.002]
[1767422370013,6.47808378,3107.2,3106.4,2.37193734]
[1767422370317,2.415721,3107.1,3106.4,2.37193734]
[1767422370680,2.415721,3107.1,3106.4,0.002]
[1767422372003,2.415721,3106.9,3106.4,0.002]
[1767422372209,0.88527986,3106.8,3106.4,0.002]
[1767422373504,2.415721,3106.7,3106.4,0.002]
[1767422374112,4.10408017,3106.8,3106.4,0.002]
[1767422375705,0.88527986,3106.8,3106.4,0.002]
[1767422376307,3.2185687,3107.0,3106.4,2.37193734]
[1767422376487,2.415721,3107.0,3106.4,0.002]
[1767422379617,3.21864237,3106.9,3106.4,0.002]
[1767422381086,5.63436337,3106.9,3106.4,0.002]
[1767422383113,2.415721,3106.8,3106.4,0.002]
[1767422383428,2.415721,3106.6,3106.0,0.002]
[1767422383722,5.63477781,3106.5,3106.0,0.002]
[1767422386318,2.415721,3106.5,3106.0,0.002]
[1767422386623,5.6348054,3106.5,3106.0,0.002]
[1767422386830,6.371316,3106.5,3106.0,0.002]
[1767422389227,0.7365106,3106.5,3106.0,2.37193734]
[1767422389427,3.21979411,3106.8,3106.0,2.37193734]
[1767422389630,0.001,3106.8,3106.2,2.36993734]
[1767422391126,0.001,3106.8,3106.2,2.40213101]
[1767422391326,0.001,3106.8,3106.2,2.36993734]
[1767422391529,0.001,3107.0,3106.6,2.36993734]
[1767422391705,2.415721,3107.5,3106.8,2.36993734]
[1767422392028,3.38242304,3107.7,3106.8,2.36993734]
[1767422392210,2.416521,3107.7,3106.8,2.36993734]
[1767422392528,0.64879887,3107.7,3106.8,2.36993734]
[1767422392736,0.0008,3107.7,3106.8,2.36993734]
[1767422393623,0.0008,3107.7,3107.0,2.36993734]
[1767422394224,2.416521,3107.7,3106.9,3.21864237]
[1767422394416,2.416521,3107.7,3106.8,3.2187086]
[1767422395730,2.415721,3107.5,3106.8,3.2187086]
[1767422396510,2.97926484,3107.5,3106.8,3.2187086]
[1767422397838,6.19737564,3107.5,3106.7,5.58874315]
[1767422398526,2.415721,3107.4,3106.7,5.58874315]
[1767422399617,2.415721,3107.4,3106.8,2.35438908]
[1767422400014,2.29517074,3107.6,3106.9,3.21864237]
[1767422400213,2.29517074,3107.6,3106.8,5.57309184]
[1767422400419,2.29517074,3107.5,3106.8,5.57309184]
[1767422400620,2.29517074,3107.5,3106.8,5.5731238]
[1767422403040,2.29617074,3107.5,3106.9,2.35438908]
[1767422403652,0.001,3107.5,3106.9,2.35438908]
[1767422404840,0.001,3107.5,3106.9,5.57296362]
[1767422405022,0.001,3107.5,3107.0,2.35438908]
[1767422405423,2.29617074,3107.5,3106.9,3.21857454]
[1767422405629,0.001,3107.5,3107.0,2.35438908]
[1767422408521,0.001,3107.5,3107.0,5.57292497]
[1767422408839,0.001,3107.5,3107.0,2.35438908]
[1767422409027,0.97096233,3107.5,3107.0,2.35438908]
[1767422409838,3.26613307,3107.5,3106.8,2.35438908]
[1767422410139,2.29517074,3107.4,3106.8,5.57312202]
[1767422411054,2.29517074,3107.4,3106.9,0.002]
[1767422414144,0.97096233,3107.5,3106.9,0.002]
[1767422414446,0.001,3107.5,3106.9,2.35638908]
[1767422415346,0.001,3107.5,3107.0,2.35438908]
[1767422417744,2.29617074,3107.5,3106.9,3.22062606]
[1767422419728,5.51424167,3107.5,3106.9,0.002]
[1767422422024,2.29617074,3107.5,3106.9,0.002]
[1767422422662,2.94435507,3107.5,3106.9,0.002]
[1767422423021,6.16237688,3107.5,3106.9,0.002]
[1767422423647,2.94435507,3107.5,3106.9,0.002]
[1767422430147,2.4417289,3107.4,3106.9,0.002]
[1767422434464,0.001,3107.5,3107.0,2.71358045]
[1767422434634,0.001,3107.5,3107.1,2.47690637]
[1767422435663,0.001,3107.5,3107.3,2.47690637]
[1767422436265,0.0018,3107.7,3107.3,2.47690637]
[1767422437064,0.00080008,3107.9,3107.5,2.47690637]
[1767422437370,0.00180008,3108.1,3107.5,2.47770653]
[1767422437657,0.00180008,3108.1,3107.6,5.69482373]
[1767422438364,0.00180008,3108.1,3107.7,2.47690637]
[1767422438557,0.00180008,3108.1,3107.6,0.89137333]
[1767422438856,0.00180008,3108.1,3107.5,2.47770653]
[1767422439263,0.00180008,3108.1,3107.5,5.69572272]
[1767422440038,0.00180008,3108.1,3107.5,2.47770653]
[1767422440239,0.00180008,3108.1,3107.6,2.47690637]
[1767422440739,2.44352898,3108.1,3107.5,0.00080016]
[1767422440945,2.44352898,3108.1,3107.5,3.21880448]
[1767422444969,2.44352898,3108.1,3107.5,0.00080016]
[1767422450072,2.44352898,3108.1,3107.5,3.21882107]
[1767422450367,5.66092877,3108.1,3107.5,0.00080016]
[1767422450742,2.4417289,3108.0,3107.5,0.00080016]
[1767422450948,2.4417289,3107.9,3107.5,0.00080016]
[1767422458094,0.81026577,3108.0,3107.5,0.00080016]
[1767422458283,5.66095022,3108.1,3107.5,0.00080016]
[1767422458649,5.66095022,3108.1,3107.5,2.47770653]
[1767422460377,2.44352898,3108.1,3107.5,2.47770653]
[1767422460574,5.66093354,3108.1,3107.5,2.47770653]
[1767422460778,0.001,3107.9,3107.5,2.47770653]
[1767422460999,0.001,3107.9,3107.5,0.00080016]
[1767422468137,0.001,3107.9,3107.5,0.00280016]
[1767422469285,0.001,3107.9,3107.5,2.40539941]
[1767422469917,0.001,3107.9,3107.6,3.21791736]
[1767422470480,0.001,3107.9,3107.5,0.00280016]
[1767422470680,2.69723473,3107.9,3107.5,0.00280016]
[1767422471895,2.45086793,3107.7,3106.6,2.40259925]
[1767422472101,2.45166801,3107.7,3106.7,2.40259925]
[1767422472398,2.45166801,3107.7,3106.9,2.40459925]
[1767422472598,0.88870886,3107.6,3106.9,2.40459925]
[1767422473399,0.00080008,3107.7,3106.9,2.40459925]
[1767422474000,0.00080008,3107.7,3107.1,2.40259925]
[1767422474416,2.45166801,3107.7,3106.9,0.002]
[1767422476095,2.45086793,3107.5,3106.3,2.40259925]
[1767422476295,2.45086793,3107.3,3106.3,2.40259925]
[1767422476517,2.45086793,3107.2,3106.3,2.40259925]
[1767422477114,2.45086793,3107.2,3106.3,5.62185514]
[1767422477315,2.45086793,3107.2,3106.3,2.40259925]
[1767422478027,2.45086793,3107.2,3106.4,2.40259925]
[1767422478223,3.21853878,3107.0,3106.4,2.40259925]
[1767422478938,0.32948679,3107.1,3106.5,2.40259925]
[1767422479100,3.21840134,3107.2,3106.5,2.40259925]
[1767422479501,5.66901953,3107.4,3106.7,2.40259925]
[1767422479502,0.844,3107.4,3106.7,2.40259925]
[1767422480232,0.844,3107.4,3106.8,2.40259925]
[1767422481223,0.844,3107.4,3107.0,2.40259925]
[1767422481839,0.844,3107.4,3106.8,2.40259925]
[1767422482000,1.17348679,3107.4,3106.8,2.40259925]
[1767422482200,1.17348679,3107.4,3106.9,2.40259925]
[1767422482729,0.32948679,3107.4,3106.9,2.40259925]
[1767422482930,5.66883158,3107.6,3106.9,2.40259925]
[1767422484235,5.66883158,3107.6,3106.9,5.6232399]
[1767422485827,5.66883158,3107.6,3107.0,2.40259925]
[1767422486529,8.88679523,3107.6,3107.0,2.40259925]
[1767422486732,8.88679523,3107.6,3106.9,0.002]
[1767422487040,0.88875953,3107.5,3106.9,0.002]
[1767422488439,3.21812447,3107.4,3106.9,0.002]
[1767422488615,2.45086793,3107.3,3106.9,0.002]
[1767422489830,3.21833161,3107.2,3106.9,0.002]
[1767422490342,2.4977609,3107.1,3106.3,2.40742299]
[1767422490671,2.81959406,3107.1,3106.3,2.40742299]
[1767422490843,2.81959406,3107.1,3106.0,0.002]
[1767422491040,2.81959406,3107.1,3106.9,0.002]
[1767422491253,2.81959406,3107.1,3106.1,2.40742299]
[1767422491542,2.4977609,3106.9,3106.0,0.002]
[1767422491753,2.4977609,3106.7,3106.0,0.002]
[1767422491919,0.844,3106.8,3106.0,0.002]
[1767422491920,2.4977609,3106.5,3106.0,0.002]
[1767422494211,5.71692134,3106.4,3106.0,0.002]
[1767422494541,2.4977609,3106.3,3106.0,1e-08]
[1767422494745,3.06945303,3106.3,3106.0,1e-08]
[1767422495118,3.06945303,3106.3,3105.6,0.002]
[1767422495609,3.06945303,3106.3,3105.6,2.40942299]
[1767422496624,3.21936771,3106.2,3105.6,2.40942299]
[1767422497931,5.71712861,3106.2,3106.0,0.002]
[1767422498130,6.66793838,3106.2,3106.0,0.002]
[1767422498328,4.17017748,3106.2,3105.6,0.002]
[1767422498534,7.38954519,3106.2,3105.6,0.002]
[1767422498735,1.13039982,3106.1,3105.6,0.002]
[1767422499512,3.62816072,3106.1,3105.6,0.002]
[1767422500461,2.4977609,3106.0,3105.5,0.002]
[1767422500610,6.43935734,3105.9,3105.5,0.002]
[1767422500806,7.44610915,3105.9,3105.5,0.002]
[1767422501548,2.4977609,3105.8,3105.1,0.002]
[1767422502651,5.71764691,3105.7,3105.1,0.002]
[1767422502808,8.93753292,3105.7,3105.1,0.002]
[1767422503212,2.4977609,3105.6,3105.1,0.002]
[1767422503415,0.89375329,3105.5,3105.1,0.002]
[1767422504845,4.11387555,3105.5,3105.1,0.002]
[1767422505049,8.93800542,3105.5,3105.1,0.002]
[1767422505614,5.71788316,3105.5,3105.1,0.002]
[1767422505834,3.21967867,3105.9,3105.1,2.40942299]
[1767422506748,4.34989783,3106.1,3105.3,2.40742299]
[1767422506954,4.06428513,3106.3,3105.5,2.40742299]
[1767422507665,3.21928513,3106.3,3105.5,2.40742299]
[1767422508845,8.93608178,3106.4,3105.6,2.40742299]
[1767422509048,5.71692134,3106.4,3105.6,2.40742299]
[1767422509254,3.21916044,3106.4,3105.6,2.40742299]
[1767422509639,2.4977609,3106.3,3105.6,2.40742299]
[1767422511558,5.71704704,3106.3,3105.7,2.40742299]
[1767422511764,3.21928614,3106.3,3105.7,2.40742299]
[1767422512644,6.43857228,3106.3,3105.7,2.40742299]
[1767422513387,2.4977609,3106.2,3105.5,2.40942299]
[1767422513561,3.21947136,3106.1,3105.5,2.40942299]
[1767422514183,6.43852814,3106.3,3105.6,2.40742299]
[1767422514673,4.23943833,3106.4,3105.6,2.40742299]
[1767422514882,0.001,3106.4,3105.6,2.40742299]
[1767422515087,0.001,3106.4,3105.7,2.40742299]
[1767422515588,0.001,3106.4,3105.9,2.40742299]
[1767422520076,0.001,3106.4,3106.0,2.43356537]
[1767422521788,0.001,3106.4,3106.0,2.43556537]
[1767422523070,0.001,3106.4,3106.1,2.43356537]
[1767422524706,0.41168694,3106.6,3106.1,2.43356537]
[1767422525013,0.41168694,3106.6,3106.2,2.43356537]
[1767422525216,3.21825926,3107.3,3106.2,5.1487628]
[1767422525217,2.37486583,3107.1,3106.2,5.1487628]
[1767422525506,2.37486583,3107.1,3106.3,2.43356537]
[1767422526006,2.37486583,3107.1,3106.5,2.43356537]
[1767422526817,4.0633766,3107.2,3106.5,2.43356537]
[1767422527279,0.845,3107.2,3106.5,2.43356537]
[1767422527481,4.06333396,3107.2,3106.5,2.43356537]
[1767422527690,0.845,3107.2,3106.5,2.43356537]
[1767422528007,4.06333896,3107.2,3106.5,5.65255318]
[1767422528731,0.845,3107.2,3106.5,8.87160999]
[1767422528933,0.845,3107.2,3106.6,2.43356537]
[1767422530037,0.846,3107.2,3106.6,2.43356537]
[1767422530413,4.06434988,3107.2,3106.6,2.43356537]
[1767422530615,6.43921571,3107.2,3106.5,6.8213566]
[1767422530835,6.43921571,3107.2,3106.5,0.88717136]
[1767422531012,2.37486583,3107.1,3106.4,5.65268599]
[1767422531906,2.37486583,3107.1,3106.4,5.65271902]
[1767422532629,2.37486583,3107.1,3106.5,3.21905578]
[1767422533340,2.37486583,3107.0,3106.4,3.21912221]
[1767422533544,2.37486583,3107.0,3106.4,4.21518096]
[1767422533932,6.43924395,3107.2,3106.4,6.64874633]
[1767422534116,6.43921045,3107.2,3106.5,2.43356537]
[1767422535642,6.43921045,3107.2,3106.5,5.6525671]
[1767422535867,6.43920342,3107.2,3106.5,5.6525671]
[1767422540973,4.06433759,3107.2,3106.6,2.43356537]
[1767422541267,5.07134196,3107.2,3106.6,2.43356537]
[1767422543232,1.85300437,3107.2,3106.7,2.43356537]
[1767422545479,5.07136617,3107.2,3106.7,2.43356537]
[1767422545714,1.85300437,3107.2,3106.7,2.43356537]
[1767422545878,5.07134897,3107.2,3106.7,2.43356537]
[1767422548703,1.85300437,3107.2,3106.7,2.43356537]
[1767422548907,5.07137085,3107.2,3106.7,2.43356537]
[1767422552590,5.07137085,3107.2,3106.5,5.59658482]
[1767422553122,7.3493241,3107.2,3106.5,5.59658482]
[1767422553732,7.3493241,3107.2,3106.4,0.002]
[1767422553733,2.27795325,3107.0,3106.4,0.002]
[1767422554227,2.27795325,3107.0,3106.4,3.2211499]
[1767422555586,3.21849324,3107.1,3106.4,5.59872639]
[1767422555923,6.34232446,3107.2,3106.4,5.59872639]
[1767422556120,7.01780193,3107.2,3106.5,2.37757649]
[1767422557121,3.79945439,3107.2,3106.6,5.59652968]
[1767422557490,1.52150114,3107.2,3106.7,2.37757649]
[1767422557686,0.001,3107.4,3106.8,5.09277392]
[1767422557992,0.001,3107.4,3106.7,0.03218849]
[1767422557993,3.21913809,3107.4,3106.9,2.37757649]
[1767422559071,0.001,3107.4,3106.9,2.37757649]
[1767422559285,0.001,3107.4,3106.9,5.59620465]
[1767422559731,0.001,3107.4,3106.9,2.37757649]
[1767422562980,0.001,3107.4,3106.9,5.59620065]
[1767422564376,0.001,3107.4,3107.0,2.37757649]
[1767422564877,0.001,3107.4,3106.9,3.21862416]
[1767422565178,2.27895325,3107.4,3106.6,5.59651567]
[1767422565470,2.27895325,3107.4,3106.6,6.27464859]
[1767422565677,2.27795325,3107.3,3106.6,6.27464859]
[1767422567881,2.27795325,3107.3,3106.6,9.49360178]
[1767422568585,2.27895325,3107.3,3106.6,9.49360178]
[1767422568961,2.27895325,3107.3,3106.7,4.2526547]
[1767422570254,2.27895325,3107.3,3106.7,6.63023119]
[1767422573480,2.27895325,3107.3,3106.7,5.59637101]
[1767422580420,5.49718331,3107.3,3106.7,2.37757649]
[1767422581109,5.49718331,3107.3,3106.6,3.22092485]
[1767422581407,5.49718331,3107.3,3106.6,0.002]
[1767422581778,2.4729328,3107.2,3106.6,0.002]
[1767422582875,0.001,3107.3,3106.6,2.48577691]
[1767422583082,0.001,3107.3,3106.7,2.48377691]
[1767422583312,0.001,3107.3,3106.8,2.48377691]
[1767422585513,0.001,3107.3,3106.9,2.48377691]
[1767422587679,0.001,3107.3,3106.9,5.70240447]
[1767422588490,0.001,3107.3,3106.9,3.21862756]
[1767422588697,2.4739328,3107.3,3106.8,3.2186836]
[1767422589095,0.001,3107.3,3106.9,5.70240099]
[1767422589814,2.4739328,3107.3,3106.7,6.43769863]
[1767422590019,2.4739328,3107.3,3106.8,3.47383306]
[1767422590020,0.001,3107.3,3106.8,3.47383306]
[1767422590317,0.001,3107.3,3106.9,2.48377691]
[1767422590717,0.001,3107.4,3106.9,2.48377691]
[1767422590907,0.001,3107.4,3107.0,2.48377691]
[1767422592321,0.001,3107.4,3107.1,2.48377691]
[1767422592888,0.001,3107.3,3107.1,3.37587261]
[1767422593427,0.001,3107.4,3107.1,3.37587261]
[1767422595221,0.001,3107.4,3107.1,0.8920957]
[1767422595422,0.001,3107.4,3106.9,5.70239418]
[1767422599705,0.001,3107.4,3107.0,2.48377691]
[1767422599911,0.001,3107.4,3106.9,3.21861727]
[1767422600222,2.4739328,3107.4,3106.9,3.21861727]
[1767422601434,2.4739328,3107.4,3107.0,3.25070618]
[1767422601636,0.00180008,3107.7,3107.0,9.60016524]
[1767422601834,0.00180008,3107.7,3107.0,9.56797986]
[1767422602004,2.47473288,3107.7,3107.0,9.56797986]
[1767422602537,0.00180008,3107.7,3107.1,2.48377691]
[1767422602704,0.00180008,3107.7,3107.3,2.48377691]
[1767422604929,0.00180016,3107.9,3107.5,2.48377691]
[1767422609545,0.00180008,3108.1,3107.6,2.35765211]
[1767422620158,2.44549144,3108.1,3107.5,0.00080024]
[1767422620369,2.44369136,3108.0,3107.5,0.00080024]
[1767422622959,1.48951862,3108.1,3107.5,0.00080024]
[1767422622960,2.44369136,3107.8,3107.5,0.00080024]
[1767422624972,5.66150517,3107.7,3107.5,0.00080024]
[1767422625171,6.54943687,3107.7,3107.5,0.00080024]
[1767422630078,2.44369136,3107.6,3107.5,0.00080024]
[1767422630381,2.44369136,3107.6,3107.3,0.00080016]
[1767422630583,2.44369136,3107.6,3107.0,0.002]
[1767422631983,5.66160872,3107.6,3107.5,0.002]
[1767422632153,5.66160872,3107.6,3107.0,0.002]
[1767422632154,6.63842416,3107.6,3107.0,0.002]
[1767422632681,2.44369136,3107.5,3107.0,0.002]
[1767422638190,5.66175968,3107.5,3107.0,0.002]
[1767422646891,5.66175968,3107.5,3107.0,0.001]
[1767422648084,3.21806832,3107.5,3107.0,0.001]
[1767422653404,7.48761996,3107.5,3107.0,0.001]
[1767422653606,9.7438163,3107.5,3107.0,0.001]
[1767422657499,9.7438163,3107.5,3106.9,2.31374706]
[1767422657704,2.25619634,3107.2,3106.6,0.002]
[1767422658003,2.48181597,3107.1,3106.6,0.002]
[1767422658200,2.25619634,3107.1,3106.6,0.002]
[1767422658403,3.21853878,3107.0,3106.6,0.002]
[1767422659770,5.4746762,3107.1,3106.6,0.002]
[1767422660302,2.71380071,3107.4,3106.6,0.002]
[1767422660303,3.21837996,3107.2,3106.6,2.31574706]
[1767422661174,4.35904249,3107.2,3106.6,2.31574706]
[1767422662504,7.57742245,3107.2,3106.6,2.31574706]
[1767422662684,4.35904249,3107.2,3106.6,2.31574706]
[1767422664871,2.25619634,3107.1,3106.6,0.002]
[1767422665093,3.21837996,3107.2,3106.6,2.31574706]
[1767422665294,4.35904214,3107.2,3106.6,2.31574706]
[1767422665684,9.83361844,3107.2,3106.6,2.31574706]
[1767422666007,9.83461844,3107.2,3106.6,2.31574706]
[1767422666182,7.5784221,3107.2,3106.6,0.002]
[1767422666508,3.21905681,3106.5,3106.2,0.002]
[1767422666673,3.21905681,3106.5,3106.0,0.002]
[1767422666674,6.43811362,3106.5,3106.0,0.002]
[1767422668318,2.25619634,3106.5,3106.0,0.002]
[1767422670321,8.80807978,3106.4,3105.6,2.38607629]
[1767422670492,3.25056688,3106.3,3105.6,2.38607629]
[1767422670692,3.25056688,3106.3,3105.7,2.38807629]
[1767422671219,6.43832088,3106.4,3105.7,2.38807629]
[1767422672414,2.3697589,3106.3,3105.7,0.001]
[1767422674816,3.21936771,3106.2,3105.7,2.38607629]
[1767422677226,2.3697589,3106.3,3105.6,0.002]
[1767422677528,2.60673479,3106.2,3105.6,0.002]
[1767422677732,2.3697589,3106.2,3105.6,0.002]
[1767422679297,5.58922131,3106.2,3105.6,0.002]
[1767422680927,3.21946241,3106.2,3105.6,2.38807629]
[1767422681925,6.43863305,3106.3,3105.6,2.38807629]
[1767422682090,7.31947225,3106.3,3105.6,2.38807629]
[1767422682626,0.001,3106.2,3105.6,2.38807629]
[1767422684425,2.3707589,3106.2,3105.5,0.002]
[1767422684627,2.3697589,3105.9,3105.3,0.002]
[1767422684825,2.3697589,3105.7,3105.3,0.002]
[1767422687131,8.80890892,3106.0,3105.3,2.38807629]
[1767422687831,2.3697589,3105.9,3105.3,2.38807629]
[1767422688134,6.43915002,3106.0,3104.4,0.00016224]
[1767422688135,2.71380071,3105.4,3104.4,0.00016224]
[1767422688308,3.47258247,3105.8,3104.4,0.00016224]
[1767422688309,2.3697589,3105.2,3104.4,0.00016224]
[1767422688515,0.845,3105.1,3104.4,0.00016224]
[1767422688835,3.2147589,3105.2,3104.4,2.94700019]
[1767422689014,3.22050819,3105.1,3104.4,2.38623853]
[1767422689213,8.81077528,3105.1,3104.4,2.38623853]